bitfinex/quotes_BTCUSD_20251205
["timestamp","ask_amount","ask_price","bid_price","bid_amount"]
[1764952240008,0.02241801,89129.0,89121.0,0.02405]
[1764952240390,0.06288,89122.0,89110.0,0.00099999]
[1764952240638,0.74195415,89120.0,89089.0,0.03613287]
[1764952240838,0.38552299,89119.0,89110.0,0.00099999]
[1764952241139,0.084941,89115.0,89110.0,0.00199998]
[1764952241281,0.407941,89115.0,89110.0,0.00199998]
[1764952241492,0.41962,89114.0,89110.0,0.00099999]
[1764952241893,0.323,89114.0,89110.0,0.00099999]
[1764952242309,0.001,89115.0,89113.0,0.06288]
[1764952242675,0.001,89115.0,89114.0,0.077529]
[1764952242806,0.00011966,89120.0,89114.0,0.16175187]
[1764952243009,0.00038713,89122.0,89121.0,0.06288]
[1764952243270,0.00038713,89122.0,89121.0,0.08420427]
[1764952243476,0.04787,89158.0,89150.0,0.00199998]
[1764952243676,0.04798962,89158.0,89150.0,0.00199998]
[1764952243897,0.04798962,89158.0,89151.0,0.03452]
[1764952244502,0.06288,89152.0,89150.0,0.00099999]
[1764952244738,0.01639,89151.0,89140.0,0.00199998]
[1764952244957,0.33939,89151.0,89140.0,0.00199998]
[1764952245374,0.00011962,89158.0,89150.0,0.06649285]
[1764952245549,0.00011962,89158.0,89157.0,0.06288]
[1764952245765,0.00011962,89158.0,89157.0,0.08640083]
[1764952245970,0.00011962,89158.0,89157.0,0.16889083]
[1764952247538,0.00311962,89158.0,89157.0,0.17189083]
[1764952247658,0.00311962,89158.0,89157.0,0.19004484]
[1764952248679,0.00011962,89158.0,89157.0,0.18704484]
[1764952248884,0.00111962,89158.0,89157.0,0.19204484]
[1764952249121,0.00511962,89158.0,89157.0,0.19504484]
[1764952249328,0.00111962,89158.0,89157.0,0.19204484]
[1764952249574,0.00011962,89158.0,89157.0,0.18704484]
[1764952249788,0.00411962,89158.0,89157.0,0.19604484]
[1764952249944,0.00111962,89158.0,89157.0,0.08764688]
[1764952250145,0.00111962,89158.0,89157.0,0.06949287]
[1764952250356,0.00411962,89158.0,89157.0,0.07349287]
[1764952250559,0.00411962,89158.0,89157.0,0.15598287]
[1764952250773,0.00111962,89158.0,89157.0,0.15198287]
[1764952250968,0.00111962,89158.0,89157.0,0.18995404]
[1764952251269,0.00011962,89158.0,89157.0,0.08055608]
[1764952251469,0.06544962,89158.0,89150.0,0.00099999]
[1764952251614,0.323,89150.0,89140.0,0.00199998]
[1764952251815,0.323,89150.0,89123.0,0.08249]
[1764952252107,0.02241801,89146.0,89140.0,0.00199998]
[1764952252270,0.04794,89145.0,89140.0,0.00199998]
[1764952252460,0.323,89148.0,89144.0,0.06003]
[1764952252981,0.323,89148.0,89140.0,0.00361285]
[1764952252982,0.323,89148.0,89140.0,0.02852081]
[1764952253216,0.002,89150.0,89140.0,0.02852081]
[1764952253330,0.002,89150.0,89147.0,0.06003]
[1764952253688,0.00011962,89158.0,89150.0,0.00199998]
[1764952254255,0.06533,89151.0,89140.0,0.00261286]
[1764952254454,0.00011962,89158.0,89150.0,0.00099999]
[1764952254691,0.00011962,89158.0,89150.0,0.00199998]
[1764952255312,0.00011962,89158.0,89150.0,0.00099999]
[1764952255485,0.00011962,89158.0,89150.0,0.00199998]
[1764952255905,0.09164,89157.0,89150.0,0.00199998]
[1764952256194,0.00311962,89158.0,89150.0,0.00399998]
[1764952256835,0.00011962,89158.0,89150.0,0.00199998]
[1764952257248,0.00211962,89158.0,89150.0,0.00299998]
[1764952258079,0.00311962,89158.0,89150.0,0.00299998]
[1764952258300,0.06127,89151.0,89150.0,0.00199999]
[1764952258505,0.323,89156.0,89150.0,0.00199999]
[1764952259564,0.09164,89157.0,89150.0,0.00099999]
[1764952259978,0.002,89156.0,89150.0,0.00199999]
[1764952260191,0.002,89156.0,89150.0,0.001]
[1764952260192,0.06127,89151.0,89150.0,0.001]
[1764952260406,0.49111499,89151.0,89150.0,0.001]
[1764952260618,0.38552299,89150.0,89140.0,0.00099999]
[1764952260833,0.13498299,89141.0,89140.0,0.00099999]
[1764952261050,0.13498299,89141.0,89045.0,0.07973977]
[1764952261051,0.06252299,89129.0,89120.0,0.00099999]
[1764952261294,0.06252299,89120.0,89110.0,0.00099999]
[1764952261512,0.02241801,89127.0,89120.0,0.00099999]
[1764952261738,0.02241801,89127.0,89120.0,0.00199998]
[1764952261961,0.02241801,89127.0,89121.0,0.02393]
[1764952262245,0.09164,89152.0,89140.0,0.00199998]
[1764952262460,0.38552299,89149.0,89140.0,0.00199998]
[1764952262668,0.06327,89141.0,89140.0,0.00099999]
[1764952262877,0.38552299,89140.0,89130.0,0.00099999]
[1764952263008,0.0189,89131.0,89130.0,0.00099999]
[1764952263213,0.04080399,89131.0,89130.0,0.00099999]
[1764952263422,0.43354,89131.0,89130.0,0.00099999]
[1764952264309,0.50006299,89131.0,89130.0,0.00099999]
[1764952264516,0.06252299,89124.0,89092.0,0.02405]
[1764952264752,0.06252299,89114.0,89100.0,0.00099999]
[1764952265051,0.06252299,89114.0,89100.0,0.00199998]
[1764952265256,0.06252299,89112.0,89110.0,0.00099999]
[1764952265458,0.323,89116.0,89110.0,0.00199998]
[1764952265606,0.11405801,89122.0,89110.0,0.00211964]
[1764952265607,0.38552299,89121.0,89110.0,0.00211964]
[1764952266001,0.41464,89120.0,89110.0,0.00211964]
[1764952266204,0.02241801,89122.0,89110.0,0.00373251]
[1764952267246,0.002,89121.0,89110.0,0.00473251]
[1764952267788,0.09164,89129.0,89110.0,0.00373251]
[1764952268090,0.002,89122.0,89110.0,0.00573251]
[1764952268641,0.002,89122.0,89110.0,0.00473251]
[1764952269040,0.01845,89123.0,89110.0,0.02617668]
[1764952269279,0.01845,89123.0,89110.0,0.00373251]
[1764952269481,0.002,89121.0,89110.0,0.00473251]
[1764952269865,0.01745,89123.0,89110.0,0.00373251]
[1764952270134,0.002,89122.0,89110.0,0.00473251]
[1764952270529,0.41464,89122.0,89110.0,0.00273252]
[1764952270672,0.06252299,89121.0,89110.0,0.00273252]
[1764952270875,0.15716299,89121.0,89110.0,0.00373252]
[1764952271220,0.001,89122.0,89110.0,0.00373251]
[1764952271797,0.02241801,89127.0,89120.0,0.00099999]
[1764952271999,0.01812,89140.0,89120.0,0.00361285]
[1764952272216,0.01812,89140.0,89130.0,0.00199998]
[1764952272419,0.09164,89146.0,89130.0,0.00199998]
[1764952272420,0.09164,89146.0,89140.0,0.00099999]
[1764952272625,0.09164,89146.0,89140.0,0.00199998]
[1764952272824,0.44679299,89141.0,89140.0,0.00199998]
[1764952273002,0.44679299,89141.0,89140.0,0.00099999]
[1764952273183,0.53843299,89141.0,89140.0,0.00099999]
[1764952273385,0.06252299,89139.0,89130.0,0.00199998]
[1764952273587,0.06252299,89139.0,89120.0,0.00099999]
[1764952273588,0.06252299,89130.0,89120.0,0.00099999]
[1764952273800,0.06082,89121.0,89110.0,0.00199998]
[1764952273997,0.06082,89121.0,89110.0,0.00239701]
[1764952274198,0.06082,89121.0,89110.0,0.00139702]
[1764952274492,0.06082,89121.0,89110.0,0.00239701]
[1764952274694,0.06127,89111.0,89110.0,0.00039703]
[1764952274917,0.06127,89111.0,89110.0,0.00139703]
[1764952275313,0.47591,89111.0,89110.0,0.00139703]
[1764952275514,5.38552299,89110.0,89100.0,0.00099999]
[1764952275724,0.38552299,89097.0,89080.0,0.00099999]
[1764952275921,0.38552299,89076.0,89070.0,0.00139999]
[1764952276125,0.07827299,89071.0,89070.0,0.0004]
[1764952276325,0.49291299,89071.0,89070.0,0.0004]
[1764952276568,0.40127299,89071.0,89070.0,0.0004]
[1764952277174,0.323,89071.0,89070.0,0.00051966]
[1764952277393,0.323,89071.0,89070.0,0.06410253]
[1764952277581,0.323,89071.0,89070.0,0.00854278]
[1764952277799,0.325,89071.0,89070.0,0.00313253]
[1764952278168,0.06252299,89088.0,89070.0,0.06410253]
[1764952278370,0.38552299,89088.0,89070.0,0.06410253]
[1764952278701,0.002,89071.0,89070.0,0.06510253]
[1764952279676,0.06252299,89095.0,89070.0,0.06410253]
[1764952279878,0.06252299,89084.0,89080.0,0.00099999]
[1764952280058,0.06252299,89084.0,89070.0,0.00313252]
[1764952280463,0.49661299,89071.0,89070.0,0.00051966]
[1764952280660,0.325,89071.0,89070.0,0.00151966]
[1764952281086,0.325,89071.0,89070.0,0.00051966]
[1764952281087,0.323,89071.0,89070.0,0.00051966]
[1764952281498,0.323,89071.0,89070.0,0.00213253]
[1764952282057,0.64010742,89100.0,89070.0,0.14832253]
[1764952282190,0.34541801,89099.0,89080.0,0.00099999]
[1764952282419,0.02241801,89099.0,89090.0,0.00099999]
[1764952282595,0.41464,89098.0,89090.0,0.00099999]
[1764952282778,0.44679299,89091.0,89090.0,0.00099999]
[1764952283414,0.53843299,89091.0,89090.0,0.00099999]
[1764952283625,0.53843299,89091.0,89090.0,0.00199999]
[1764952283626,0.44679299,89091.0,89090.0,0.00199999]
[1764952284017,0.44679299,89091.0,89090.0,0.00099999]
[1764952284775,0.001,89085.0,89070.0,0.00051966]
[1764952284947,0.43409,89071.0,89070.0,0.00151965]
[1764952285149,0.49661299,89071.0,89070.0,0.00051966]
[1764952285352,0.58825299,89071.0,89070.0,0.00051966]
[1764952285653,0.43534299,89071.0,89070.0,0.00051966]
[1764952285849,0.37282,89071.0,89070.0,0.00051966]
[1764952286558,0.37482,89071.0,89070.0,0.00351966]
[1764952286910,0.37282,89071.0,89070.0,0.0008848]
[1764952287115,0.37582,89071.0,89070.0,0.0018848]
[1764952287526,0.326,89071.0,89070.0,0.00349767]
[1764952288952,0.327,89071.0,89070.0,0.00349767]
[1764952290334,0.327,89071.0,89070.0,0.0018848]
[1764952290540,0.54319299,89071.0,89070.0,0.0018848]
[1764952290761,0.327,89071.0,89070.0,0.0018848]
[1764952290969,0.327,89071.0,89070.0,0.00349767]
[1764952291442,0.327,89071.0,89070.0,0.06565767]
[1764952291636,0.004,89071.0,89070.0,0.15644344]
[1764952292360,0.04531,89091.0,89070.0,0.07122344]
[1764952292568,1.06790041,89090.0,89080.0,0.00099999]
[1764952292771,1.06790041,89090.0,89070.0,0.00249767]
[1764952292772,0.04631,89071.0,89070.0,0.00513252]
[1764952292971,0.43089,89071.0,89070.0,0.00413253]
[1764952293178,0.58550299,89071.0,89070.0,0.00251966]
[1764952293381,0.38552299,89070.0,89050.0,0.00099999]
[1764952293759,5.0,89051.0,89050.0,5.8e-05]
[1764952294052,0.38552299,89048.0,89030.0,0.00104011]
[1764952294351,0.42811299,89031.0,89030.0,0.00165299]
[1764952294552,0.36559,89031.0,89030.0,0.00165299]
[1764952294914,0.42811299,89031.0,89030.0,0.00165299]
[1764952295319,0.38552299,89031.0,89030.0,0.00165299]
[1764952295539,0.323,89031.0,89030.0,0.00165299]
[1764952296287,0.324,89031.0,89030.0,0.00165299]
[1764952296629,0.323,89031.0,89030.0,0.00165299]
[1764952297165,0.53919299,89031.0,89030.0,4.012e-05]
[1764952297727,0.53919299,89031.0,89030.0,0.00165299]
[1764952297728,0.38552299,89031.0,89030.0,0.00165299]
[1764952298550,0.323,89031.0,89030.0,0.00165299]
[1764952298972,0.47767,89031.0,89030.0,0.00323596]
[1764952299214,0.324,89031.0,89030.0,0.00323596]
[1764952299574,0.326,89031.0,89030.0,0.00523596]
[1764952299781,0.324,89031.0,89030.0,0.00323596]
[1764952300025,0.001,89031.0,89030.0,0.15219596]
[1764952300268,0.004,89031.0,89030.0,0.16871561]
[1764952300477,0.003,89031.0,89030.0,0.19117994]
[1764952300679,0.0001195,89048.0,89046.0,0.00030005]
[1764952300850,0.0001195,89048.0,89046.0,0.00161287]
[1764952301156,0.0001195,89048.0,89047.0,0.03743]
[1764952301332,0.0001195,89048.0,89047.0,0.04010813]
[1764952301713,0.0616995,89048.0,89047.0,0.00267813]
[1764952302482,0.0001195,89048.0,89047.0,0.00267813]
[1764952302708,0.0001195,89048.0,89047.0,0.06483813]
[1764952302846,0.0001195,89048.0,89047.0,0.02018812]
[1764952303051,0.0001195,89048.0,89047.0,0.00267813]
[1764952303347,0.54131249,89048.0,89047.0,0.00206526]
[1764952303763,0.54131249,89048.0,89023.0,0.02403]
[1764952303764,0.38552299,89047.0,89023.0,0.02403]
[1764952303976,0.06252299,89045.0,89023.0,0.02564287]
[1764952304173,0.02246799,89044.0,89023.0,0.00161287]
[1764952304381,0.323,89043.0,89023.0,0.00161287]
[1764952304585,0.11455799,89044.0,89023.0,0.00161287]
[1764952304586,0.323,89039.0,89023.0,0.00161287]
[1764952304934,0.0021195,89048.0,89023.0,0.00161287]
[1764952305213,0.0021195,89048.0,89024.0,0.01755599]
[1764952305511,0.0021195,89048.0,89025.0,0.01755579]
[1764952305674,0.0021195,89048.0,89030.0,0.00030005]
[1764952306014,0.0021195,89048.0,89030.0,0.00161287]
[1764952306318,0.02258749,89048.0,89030.0,0.00161287]
[1764952306523,0.04531,89031.0,89030.0,0.00161287]
[1764952307028,0.04531,89031.0,89005.0,0.01763174]
[1764952307029,0.323,89030.0,89005.0,0.01763174]
[1764952307207,0.04591,89016.0,89006.0,0.10970506]
[1764952307412,0.323,89030.0,89015.0,0.00161287]
[1764952307644,0.323,89030.0,89015.0,0.08112267]
[1764952307867,0.04591,89041.0,89029.0,0.00161287]
[1764952308069,0.02246799,89040.0,89029.0,0.00161287]
[1764952308365,0.06071,89030.0,89029.0,0.00161287]
[1764952309176,0.323,89043.0,89029.0,0.00161287]
[1764952309330,0.02258747,89040.0,89029.0,0.00161287]
[1764952309535,0.005,89030.0,89029.0,0.00161287]
[1764952309734,0.005,89030.0,89029.0,0.00216093]
[1764952309735,0.06171,89030.0,89029.0,0.00216093]
[1764952309917,0.06171,89030.0,89029.0,0.00054806]
[1764952309918,0.53946299,89030.0,89029.0,0.00054806]
[1764952310126,0.54346299,89030.0,89029.0,0.00054806]
[1764952311981,0.53946299,89030.0,89029.0,0.00054806]
[1764952312133,0.54346299,89030.0,89029.0,0.00054806]
[1764952312793,0.54446299,89030.0,89029.0,0.00054806]
[1764952313637,0.48194,89030.0,89029.0,0.00054806]
[1764952315264,5.54446299,89030.0,89029.0,0.00054806]
[1764952315471,5.56758127,89030.0,89029.0,0.00054806]
[1764952315800,3.54694,89030.0,89029.0,0.00054806]
[1764952316005,0.48094,89030.0,89029.0,0.00054806]
[1764952316370,0.47794,89030.0,89029.0,0.00054806]
[1764952316904,0.48294,89030.0,89029.0,0.00054806]
[1764952317704,0.48194,89030.0,89029.0,0.00054806]
[1764952317915,5.532946,89030.0,89029.0,0.00054806]
[1764952318118,5.59046899,89030.0,89029.0,0.00054806]
[1764952318318,5.59746899,89030.0,89029.0,0.00054806]
[1764952318515,5.62060431,89030.0,89029.0,0.00054806]
[1764952319143,5.57059831,89030.0,89029.0,0.00054806]
[1764952319562,0.57059831,89030.0,89029.0,0.00054806]
[1764952320358,0.50807532,89030.0,89029.0,0.00054806]
[1764952320720,0.50807532,89030.0,89029.0,0.00216093]
[1764952320721,0.48233,89030.0,89029.0,0.00216093]
[1764952320877,0.54485299,89030.0,89029.0,0.00054806]
[1764952321288,0.38552299,89029.0,89000.0,30.05599694]
[1764952321451,0.02619,89001.0,89000.0,30.05760981]
[1764952321649,0.02241801,89019.0,89000.0,30.05760981]
[1764952322077,0.02619,89028.0,89018.0,0.00161287]
[1764952322285,0.11308799,89027.0,89018.0,0.00161287]
[1764952322712,0.11320745,89027.0,89018.0,0.00161287]
[1764952323048,0.06185,89019.0,89018.0,0.00161287]
[1764952323242,0.06185,89019.0,89000.0,30.05599694]
[1764952323550,0.02246799,89018.0,89000.0,30.05760981]
[1764952323844,0.11308799,89018.0,89000.0,30.05760981]
[1764952324585,0.06185,89001.0,89000.0,30.05760981]
[1764952324964,0.09062,89011.0,89000.0,30.05760981]
[1764952325411,0.41362,89011.0,89000.0,30.05760981]
[1764952325852,0.06185,89001.0,89000.0,30.05760981]
[1764952326046,0.06185,89001.0,89000.0,30.05599694]
[1764952326047,2.64337299,89001.0,89000.0,30.05599694]
[1764952326258,0.53899299,89001.0,89000.0,30.05760981]
[1764952326842,5.53899299,89001.0,89000.0,30.05760981]
[1764952327292,5.56214462,89001.0,89000.0,30.05760981]
[1764952327461,1.64184462,89001.0,89000.0,30.05760981]
[1764952327853,1.36969299,89001.0,89000.0,30.05760981]
[1764952328049,0.47547,89001.0,89000.0,30.05760981]
[1764952328245,0.48247,89001.0,89000.0,30.05760981]
[1764952328482,0.47547,89001.0,89000.0,30.05760981]
[1764952328819,0.008,89001.0,89000.0,30.05760981]
[1764952329090,0.002,89001.0,89000.0,30.05760981]
[1764952329505,0.007,89001.0,89000.0,30.05760981]
[1764952330330,0.005,89001.0,89000.0,30.05760981]
[1764952330687,0.006,89001.0,89000.0,30.05760981]
[1764952330888,0.001,89001.0,89000.0,30.05760981]
[1764952331093,0.01812,89022.0,89000.0,30.16731487]
[1764952331094,0.09062,89022.0,89000.0,30.16731487]
[1764952331335,0.002,89001.0,89000.0,30.16731487]
[1764952331548,0.002,89001.0,89000.0,30.05760981]
[1764952331766,0.47747,89001.0,89000.0,30.05760981]
[1764952332189,0.95659299,89001.0,89000.0,29.98431694]
[1764952332340,5.53799299,89001.0,89000.0,29.98520032]
[1764952332544,5.67084677,89001.0,89000.0,29.98520032]
[1764952332735,5.67084535,89001.0,89000.0,29.28520032]
[1764952333136,0.67084535,89001.0,89000.0,29.28520032]
[1764952333397,5.67084535,89001.0,89000.0,29.28520032]
[1764952333597,5.67084535,89001.0,89000.0,28.95886032]
[1764952333908,5.67184535,89001.0,89000.0,28.95886032]
[1764952334121,5.56714029,89001.0,89000.0,28.96147319]
[1764952334523,5.56114029,89001.0,89000.0,28.96047319]
[1764952334669,5.56114029,89001.0,89000.0,28.95886032]
[1764952334871,5.58414029,89001.0,89000.0,28.96047319]
[1764952335152,5.69384535,89001.0,89000.0,28.96047319]
[1764952335430,5.59826029,89001.0,89000.0,28.66461073]
[1764952335628,5.61302599,89001.0,89000.0,28.63088392]
[1764952335777,5.6654085,89001.0,89000.0,28.5971433]
[1764952335981,1.9344085,89001.0,89000.0,23.46415906]
[1764952336177,5.6794085,89001.0,89000.0,23.42206772]
[1764952336384,5.6794085,89001.0,89000.0,21.915391]
[1764952336385,4.9737085,89001.0,89000.0,21.915391]
[1764952336602,4.90320599,89001.0,89000.0,17.60835038]
[1764952336819,4.92432599,89001.0,89000.0,17.57460976]
[1764952337023,4.92432599,89001.0,89000.0,17.54086914]
[1764952337390,5.79718269,89001.0,89000.0,11.11778168]
[1764952337513,5.79718269,89001.0,88953.0,0.00096115]
[1764952337514,0.79718269,89001.0,88953.0,0.00096115]
[1764952337724,0.00099999,88860.0,88846.0,0.03499]
[1764952337980,0.13574,88893.0,88859.0,0.00161287]
[1764952338455,0.09062,88908.0,88860.0,0.0347522]
[1764952338655,0.04512,88893.0,88861.0,0.01963406]
[1764952338809,0.41362,88913.0,88862.0,0.00030005]
[1764952339015,0.00011917,88899.0,88871.0,0.00030005]
[1764952339227,0.00011917,88899.0,88872.0,0.0347522]
[1764952339424,0.002,88893.0,88873.0,0.01167639]
[1764952339605,0.002,88893.0,88873.0,0.01328926]
[1764952339805,0.002,88893.0,88892.0,0.00161287]
[1764952340207,0.15614,88893.0,88879.0,0.0213822]
[1764952340589,0.15614,88893.0,88846.0,0.09721]
[1764952340590,0.323,88889.0,88846.0,0.09721]
[1764952340802,0.323,88889.0,88847.0,0.01397831]
[1764952341009,0.323,88889.0,88848.0,0.01386388]
[1764952341216,0.323,88889.0,88862.0,0.001]
[1764952341388,0.04512,88893.0,88850.0,0.02441799]
[1764952341532,0.04512,88893.0,88859.0,0.00030005]
[1764952341738,0.007,88889.0,88860.0,0.00099999]
[1764952342091,0.007,88889.0,88869.0,0.00030005]
[1764952342247,0.007,88889.0,88869.0,0.01315996]
[1764952342454,0.007,88889.0,88878.0,0.00030005]
[1764952342455,0.017,88889.0,88878.0,0.00030005]
[1764952342657,0.00011917,88899.0,88889.0,0.00030005]
[1764952342863,0.00011917,88899.0,88898.0,0.03457]
[1764952343218,0.00011917,88899.0,88898.0,0.03487005]
[1764952343359,0.04512,88947.0,88898.0,0.13208005]
[1764952343562,0.00011972,88935.0,88908.0,0.02196111]
[1764952343880,0.00011972,88935.0,88934.0,0.02339224]
[1764952344288,0.04512,88982.0,88934.0,0.13573888]
[1764952344471,0.02246799,88981.0,88934.0,0.13372664]
[1764952344677,0.02246799,88981.0,88951.0,0.02196111]
[1764952344867,0.02408086,88981.0,88951.0,0.02196111]
[1764952345278,0.74487816,88970.0,88935.0,0.01591766]
[1764952345491,0.02246799,88969.0,88936.0,0.00165]
[1764952345687,0.00161287,88970.0,88936.0,0.10965845]
[1764952345938,0.02408086,88970.0,88941.0,0.02196111]
[1764952346241,0.02246799,88969.0,88951.0,0.002]
[1764952346697,0.09864,88968.0,88910.0,0.74587815]
[1764952346836,0.00099999,88960.0,88927.0,0.02196111]
[1764952347040,0.00261286,88960.0,88927.0,0.02196111]
[1764952347653,0.09864,88959.0,88927.0,0.02196111]
[1764952347857,0.10025287,88959.0,88927.0,0.02196111]
[1764952348081,0.02810314,88958.0,88927.0,0.02196111]
[1764952348463,0.02810314,88958.0,88936.0,0.001]
[1764952348658,0.02810314,88958.0,88934.0,0.02196111]
[1764952348865,0.00099999,88970.0,88930.0,0.74487816]
[1764952348866,0.00099999,88970.0,88943.0,0.02196111]
[1764952349179,0.001,88959.0,88943.0,0.02196111]
[1764952349387,0.00099999,88980.0,88952.0,0.02196111]
[1764952349581,0.002,88958.0,88952.0,0.02196111]
[1764952349787,0.002,88958.0,88936.0,0.02296111]
[1764952349963,0.002,88958.0,88935.0,0.07668393]
[1764952349964,0.04549,88937.0,88927.0,0.002]
[1764952350405,0.02190399,88929.0,88927.0,0.002]
[1764952350591,0.00099999,88930.0,88900.0,0.74487816]
[1764952350917,0.04549,88937.0,88912.0,0.02196111]
[1764952351209,0.0281101,88936.0,88928.0,0.00219532]
[1764952351440,0.04549,88937.0,88920.0,0.74487816]
[1764952351570,0.04549,88937.0,88921.0,0.07448782]
[1764952351979,0.001,88930.0,88921.0,0.07448782]
[1764952352473,0.04549,88937.0,88921.0,0.07448782]
[1764952352665,0.04549,88937.0,88912.0,0.00039679]
[1764952352666,0.09963999,88930.0,88920.0,0.002]
[1764952352824,0.35111231,88929.0,88920.0,0.002]
[1764952353030,0.00099999,88920.0,88912.0,0.00039679]
[1764952353225,0.04549,88913.0,88912.0,0.00039679]
[1764952353612,0.04549,88913.0,88810.0,0.25004363]
[1764952353613,0.00099999,88900.0,88820.0,0.0376991]
[1764952353797,0.00099999,88900.0,88871.0,0.11222]
[1764952353798,0.00301153,88900.0,88871.0,0.11222]
[1764952354004,0.09864,88899.0,88872.0,0.08790593]
[1764952354222,0.02190399,88896.0,88872.0,0.08790593]
[1764952354603,0.04549,88873.0,88850.0,0.74487816]
[1764952355242,0.04549,88873.0,88844.0,0.02196111]
[1764952355445,0.00099999,88880.0,88860.0,0.74487816]
[1764952355643,0.00099999,88880.0,88872.0,0.001]
[1764952355826,0.00139866,88880.0,88860.0,0.74487816]
[1764952356020,0.00139866,88880.0,88861.0,0.07448782]
[1764952356243,0.00139866,88880.0,88830.0,0.023418]
[1764952356244,0.00099999,88860.0,88850.0,0.006]
[1764952356483,0.00099999,88860.0,88830.0,0.74587815]
[1764952356819,0.00099999,88850.0,88820.0,0.78257726]
[1764952356938,0.00099999,88860.0,88821.0,0.00050456]
[1764952357314,0.00099999,88860.0,88849.0,0.00460816]
[1764952357512,0.00099999,88860.0,88820.0,0.0376991]
[1764952357513,0.09963999,88860.0,88820.0,0.0376991]
[1764952357798,0.00099999,88840.0,88820.0,0.78257726]
[1764952358002,0.00039843,88840.0,88820.0,0.78257726]
[1764952358229,0.00039843,88840.0,88839.0,0.00491389]
[1764952359189,0.00139843,88840.0,88839.0,0.00491389]
[1764952359554,0.00039843,88840.0,88839.0,0.00491389]
[1764952359750,0.00839843,88840.0,88839.0,0.00691389]
[1764952360169,0.4316513,88840.0,88839.0,0.00691389]
[1764952360373,0.4502113,88840.0,88839.0,0.00691389]
[1764952360795,0.00839843,88840.0,88839.0,0.00691389]
[1764952361334,0.10803843,88840.0,88839.0,0.00691389]
[1764952361679,0.1096513,88840.0,88839.0,0.00691389]
[1764952362104,0.12355529,88840.0,88839.0,0.00491389]
[1764952362322,0.1016513,88840.0,88839.0,0.00491389]
[1764952362499,0.1006513,88840.0,88839.0,0.00311389]
[1764952362699,0.00099999,88830.0,88820.0,0.77459115]
[1764952362934,0.00099999,88830.0,88820.0,0.02971299]
[1764952363152,0.00401129,88840.0,88829.0,0.00027447]
[1764952363351,0.00401129,88840.0,88820.0,0.02971299]
[1764952363556,0.00039843,88840.0,88830.0,0.74487816]
[1764952363756,0.00139843,88840.0,88830.0,0.74487816]
[1764952363957,0.00139843,88840.0,88822.0,0.02196111]
[1764952364111,0.00639843,88840.0,88830.0,0.74487816]
[1764952364331,0.00539843,88840.0,88830.0,0.74487816]
[1764952364566,0.00539843,88840.0,88820.0,0.77459115]
[1764952364768,0.00099999,88830.0,88820.0,0.02971299]
[1764952364967,0.10665129,88840.0,88820.0,0.02971299]
[1764952365506,0.00099999,88830.0,88820.0,0.02971299]
[1764952365631,0.00099999,88830.0,88820.0,0.03071299]
[1764952366285,0.00099999,88830.0,88820.0,0.02971299]
[1764952367095,0.00301129,88840.0,88820.0,0.77459115]
[1764952367271,0.01039843,88840.0,88830.0,0.74487816]
[1764952367901,0.01039843,88840.0,88833.0,0.02196111]
[1764952368498,0.00039843,88840.0,88825.0,0.01856]
[1764952368704,0.00039843,88840.0,88830.0,0.74487816]
[1764952368902,0.00039843,88840.0,88831.0,0.00024441]
[1764952369551,0.00339843,88840.0,88831.0,0.00024441]
[1764952369751,0.00039843,88840.0,88831.0,0.00024441]
[1764952370310,0.00039843,88840.0,88836.0,0.02196111]
[1764952370311,0.00339843,88840.0,88836.0,0.02196111]
[1764952371388,0.00339843,88840.0,88839.0,0.02196111]
[1764952372106,0.00339843,88840.0,88832.0,0.07646826]
[1764952372307,0.00339843,88840.0,88839.0,0.02196111]
[1764952372626,0.00039843,88840.0,88839.0,0.02196111]
[1764952372829,0.00339843,88840.0,88839.0,0.03190405]
[1764952373031,0.00339843,88840.0,88832.0,0.09842937]
[1764952373233,0.00139843,88840.0,88832.0,0.09942937]
[1764952373746,0.00039843,88840.0,88832.0,0.07646826]
[1764952374181,0.00039843,88840.0,88839.0,0.001]
[1764952374317,0.00039843,88840.0,88839.0,0.02296111]
[1764952374526,0.00039843,88840.0,88839.0,0.03290405]
[1764952375271,0.00339843,88840.0,88839.0,0.01094294]
[1764952375466,0.00039843,88840.0,88832.0,0.07646826]
[1764952375628,0.00039843,88840.0,88837.0,0.02196111]
[1764952375832,0.00239843,88840.0,88837.0,0.02196111]
[1764952376243,0.00239843,88840.0,88839.0,0.02196111]
[1764952376464,0.00239843,88840.0,88832.0,0.07646826]
[1764952376670,0.00039843,88840.0,88833.0,0.08215908]
[1764952376871,0.00039843,88840.0,88837.0,0.001]
[1764952377186,0.00339843,88840.0,88837.0,0.001]
[1764952377386,0.00339843,88840.0,88831.0,0.00024441]
[1764952378089,0.10837,88832.0,88831.0,0.00024441]
[1764952378451,0.20284287,88832.0,88831.0,0.00024441]
[1764952378646,0.21893848,88832.0,88831.0,0.00024441]
[1764952378847,0.04679287,88832.0,88831.0,0.00024441]
[1764952379257,0.008,88832.0,88831.0,0.00024441]
[1764952379456,0.04518,88839.0,88831.0,0.00024441]
[1764952379859,0.008,88832.0,88831.0,0.00024441]
[1764952380122,0.00099999,88830.0,88820.0,0.02971299]
[1764952381053,0.06319,88821.0,88820.0,0.02971299]
[1764952381263,0.323,88828.0,88820.0,0.02971299]
[1764952381676,0.00099999,88830.0,88820.0,0.02971299]
[1764952382090,0.00799999,88830.0,88820.0,0.02971299]
[1764952382424,0.00099999,88830.0,88820.0,0.02971299]
[1764952382578,0.001,88830.0,88820.0,0.77459115]
[1764952382777,0.007,88828.0,88820.0,0.77459115]
[1764952382982,0.001,88830.0,88820.0,0.77459115]
[1764952383223,0.323,88838.0,88820.0,0.77459115]
[1764952383412,0.009,88830.0,88828.0,0.74487816]
[1764952383652,0.009,88830.0,88820.0,0.02971299]
[1764952383653,0.009,88830.0,88829.0,0.02196111]
[1764952384008,0.008,88830.0,88829.0,0.02196111]
[1764952384329,0.008,88830.0,88826.0,0.02196111]
[1764952384756,0.00039843,88840.0,88820.0,0.77459115]
[1764952384883,0.00039843,88840.0,88839.0,0.02196111]
[1764952385084,0.00039843,88840.0,88830.0,0.76683927]
[1764952385294,0.00039843,88840.0,88831.0,0.07853193]
[1764952385880,0.00039843,88840.0,88833.0,0.02196111]
[1764952386444,0.00039843,88840.0,88831.0,0.07853193]
[1764952386592,0.00039843,88840.0,88824.0,0.01848]
[1764952386790,0.00039843,88840.0,88831.0,0.001]
[1764952387199,0.00039843,88840.0,88824.0,0.01848]
[1764952387426,0.00039843,88840.0,88835.0,0.02196111]
[1764952387622,0.00039843,88840.0,88839.0,0.02196111]
[1764952387821,0.00039843,88840.0,88834.0,0.02196111]